bitfinex/quotes_SOLUSD_20241103
["timestamp","ask_amount","ask_price","bid_price","bid_amount"]
[1730641797625,70.0,161.78,161.72,21.6778]
[1730641797950,70.0,161.76,161.71,0.3024014]
[1730641799156,70.0,161.75,161.71,0.3024014]
[1730641804230,70.0,161.72,161.71,0.3024014]
[1730641807638,70.0,161.74,161.71,0.3024014]
[1730641808149,70.0,161.72,161.71,0.3024014]
[1730641808457,70.0,161.74,161.71,0.3024014]
[1730641808749,70.0,161.72,161.71,0.3024014]
[1730641808959,16.5188,161.76,161.71,0.3024014]
[1730641808960,70.0,161.74,161.71,0.3024014]
[1730641812734,70.0,161.78,161.72,0.22542934]
[1730641812946,70.0,161.8,161.75,0.09993934]
[1730641813346,70.0,161.8,161.74,6.40782934]
[1730641813756,70.0,161.8,161.75,0.09993934]
[1730641814657,70.0,161.8,161.76,0.09993934]
[1730641815357,70.0,161.8,161.75,0.09993934]
[1730641815560,70.0,161.8,161.75,6.28213934]
[1730641815863,70.0,161.8,161.76,0.09993934]
[1730641816538,86.0396,161.85,161.78,0.09993934]
[1730641816737,70.0,161.83,161.77,0.25098]
[1730641817356,70.0,161.81,161.76,0.09993934]
[1730641817565,70.0,161.81,161.76,6.28183934]
[1730641817862,70.0,161.83,161.77,0.09993934]
[1730641819167,70.0,161.83,161.77,0.22542934]
[1730641819355,86.0396,161.85,161.79,0.09993934]
[1730641819557,86.0396,161.85,161.79,6.28043934]
[1730641819861,86.0396,161.85,161.79,21.73253934]
[1730641820438,86.0396,161.85,161.79,15.55203934]
[1730641821268,86.0396,161.85,161.79,21.73283934]
[1730641821654,86.0396,161.85,161.8,0.09993934]
[1730641821839,70.0,161.85,161.8,0.09993934]
[1730641823765,70.0,161.81,161.75,0.09993934]
[1730641824946,70.0,161.79,161.74,0.09993934]
[1730641825461,70.0,161.81,161.75,0.09993934]
[1730641825662,16.0396,161.82,161.76,0.09993934]
[1730641825837,70.0,161.81,161.75,21.86352934]
[1730641826255,70.0,161.81,161.74,6.28253934]
[1730641826460,70.0,161.81,161.75,0.09993934]
[1730641828256,70.0,161.84,161.78,0.22542934]
[1730641828463,70.0,161.84,161.79,0.09993934]
[1730641829143,70.0,161.81,161.76,15.4549]
[1730641829377,70.0,161.81,161.76,15.55483934]
[1730641829664,70.0,161.81,161.75,0.09993934]
[1730641830237,86.5571,161.79,161.72,0.09993934]
[1730641830441,70.0,161.77,161.72,0.09993934]
[1730641831054,70.0,161.77,161.71,6.4862014]
[1730641831055,70.0,161.77,161.71,6.08614074]
[1730641836070,70.0,161.77,161.71,0.25098]
[1730641836379,70.0,161.77,161.66,37.1138]
[1730641836380,70.0,161.75,161.68,6.1847]
[1730641836586,70.0,161.73,161.67,15.4632]
[1730641837384,70.0,161.73,161.66,6.1855]
[1730641837385,70.0,161.71,161.64,6.2865]
[1730641837562,70.0,161.71,161.64,6.1865]
[1730641837875,70.0,161.71,161.65,0.22549]
[1730641838090,70.0,161.71,161.65,0.1]
[1730641838251,70.0,161.71,161.64,21.7529]
[1730641838452,70.0,161.71,161.64,21.6529]
[1730641838652,70.0,161.71,161.64,15.4664]
[1730641839575,70.0,161.69,161.64,15.4664]
[1730641839756,70.0,161.69,161.63,0.1]
[1730641839958,70.0,161.65,161.62,0.3024014]
[1730641840177,16.5571,161.64,161.62,0.3024014]
[1730641842154,70.0,161.67,161.62,0.3024014]
[1730641842365,16.5571,161.68,161.63,0.12549]
[1730641842578,70.0,161.64,161.62,0.3024014]
[1730641842774,70.0,161.66,161.62,0.3024014]
[1730641843365,16.5571,161.72,161.62,0.3024014]
[1730641843366,70.0,161.64,161.62,0.3024014]
[1730641844058,70.1,161.64,161.62,0.3024014]
[1730641844262,70.0,161.64,161.62,0.3024014]
[1730641844584,70.1,161.64,161.62,0.3024014]
[1730641844963,70.0,161.64,161.62,0.3024014]
[1730641847371,0.1,161.63,161.62,0.3024014]
[1730641847691,86.5591,161.64,161.62,0.3024014]
[1730641848372,86.4591,161.64,161.62,0.3024014]
[1730641848689,70.0,161.64,161.62,0.3024014]
[1730641849063,70.0,161.67,161.62,21.9578014]
[1730641849475,70.1,161.64,161.62,0.3024014]
[1730641850984,0.1,161.63,161.62,0.3024014]
[1730641851986,70.1,161.64,161.62,0.3024014]
[1730641852672,0.1,161.63,161.62,0.3024014]
[1730641854761,70.1,161.64,161.62,0.3024014]
[1730641854961,70.0,161.64,161.62,0.3024014]
[1730641855195,70.1,161.64,161.62,0.3024014]
[1730641857486,70.0,161.64,161.62,0.3024014]
[1730641857686,70.0,161.66,161.62,0.3024014]
[1730641857892,70.0,161.66,161.62,6.4896014]
[1730641858070,70.0,161.68,161.62,15.7707014]
[1730641858395,70.0,161.68,161.62,15.8707014]
[1730641858776,70.0,161.65,161.62,0.3024014]
[1730641858985,70.0,161.63,161.62,0.3024014]
[1730641860769,70.1,161.63,161.62,0.3024014]
[1730641861390,70.0,161.63,161.62,0.3024014]
[1730641862593,86.4591,161.65,161.62,0.3024014]
[1730641863179,70.1,161.63,161.62,0.3024014]
[1730641869086,70.0,161.63,161.62,0.3024014]
[1730641869308,70.1,161.63,161.62,0.3024014]
[1730641869813,70.0,161.63,161.62,0.3024014]
[1730641870015,16.5591,161.65,161.62,0.3024014]
[1730641870016,70.0,161.65,161.62,0.3024014]
[1730641870395,70.0,161.63,161.62,0.3024014]
[1730641870701,70.0,161.65,161.62,6.4897014]
[1730641870907,70.0,161.65,161.62,0.3024014]
[1730641871225,70.0,161.69,161.63,21.6543]
[1730641871516,16.1905,161.7,161.63,21.6543]
[1730641871517,70.0,161.71,161.66,0.22549]
[1730641871698,6.1801,161.81,161.67,0.22549]
[1730641871699,70.0,161.73,161.67,0.22549]
[1730641871886,70.0,161.73,161.68,0.22549]
[1730641872091,0.1,161.75,161.68,0.22549]
[1730641872092,70.0,161.75,161.7,0.1]
[1730641872402,70.0,161.75,161.71,0.1]
[1730641872896,70.0,161.75,161.71,6.2837]
[1730641873100,70.0,161.75,161.71,6.1837]
[1730641873404,70.0,161.75,161.71,6.2837]
[1730641873910,70.0,161.73,161.67,23.876884]
[1730641874123,70.0,161.71,161.66,21.7014]
[1730641874437,70.0,161.69,161.62,6.5402014]
[1730641874595,70.0,161.69,161.62,0.3024014]
[1730641874596,70.0,161.64,161.62,0.3024014]
[1730641875304,70.1,161.64,161.62,0.3024014]
[1730641875499,0.1,161.63,161.62,0.3024014]
[1730641879818,16.3715,161.63,161.62,0.3024014]
[1730641883803,0.1,161.63,161.62,0.3024014]
[1730641887114,0.1,161.63,161.54,0.3024014]
[1730641887115,0.1,161.55,161.54,0.3024014]
[1730641896341,15.4792,161.55,161.54,0.3024014]
[1730641900629,15.60469,161.55,161.54,0.3024014]
[1730641901642,15.4792,161.55,161.54,0.3024014]
[1730641907331,0.1,161.55,161.54,0.3024014]
[1730641908151,70.0,161.56,161.54,0.3024014]
[1730641910545,70.0,161.56,161.54,6.4926014]
[1730641910737,70.0,161.56,161.54,0.3024014]
[1730641911454,70.0,161.59,161.55,23.776884]
[1730641911659,70.0,161.61,161.56,0.22549]
[1730641911977,70.0,161.61,161.57,0.1]
[1730641912126,70.0,161.61,161.56,6.1893]
[1730641912329,70.0,161.59,161.54,15.7784014]
[1730641912746,70.0,161.57,161.54,0.3024014]
[1730641912945,70.0,161.55,161.54,0.3024014]
[1730641913730,70.1,161.55,161.54,0.3024014]
[1730641914954,76.41549,161.55,161.54,0.3024014]
[1730641916252,70.1,161.51,161.5,13.0]
[1730641922959,70.0,161.51,161.5,13.0]
[1730641923267,70.1,161.51,161.5,13.0]
[1730641925954,70.0,161.51,161.5,13.0]
[1730641926261,70.1,161.51,161.5,13.0]
[1730641926463,70.0,161.51,161.5,13.0]
[1730641931078,70.0,161.51,161.5,12.5]
[1730641931773,70.0,161.53,161.5,12.5]
[1730641931998,70.0,161.53,161.5,18.6918]
[1730641933074,70.0,161.51,161.5,12.5]
[1730641934153,70.1,161.51,161.5,12.5]
[1730641937290,70.0,161.51,161.5,12.5]
[1730641937952,70.0,161.51,161.5,18.6919]
[1730641938276,70.0,161.53,161.5,40.3847]
[1730641938775,70.0,161.55,161.5,40.3847]
[1730641939253,70.0,161.55,161.51,23.902374]
[1730641939452,70.0,161.58,161.53,23.776884]
[1730641939657,70.0,161.62,161.54,0.37647]
[1730641939882,70.0,161.62,161.56,0.1]
[1730641940054,70.0,161.6,161.55,23.776884]
[1730641940260,70.0,161.58,161.52,16.2904]
[1730641940455,70.0,161.58,161.52,16.1904]
[1730641940763,70.0,161.54,161.5,40.3847]
[1730641941458,70.0,161.54,161.51,0.1]
[1730641941869,70.0,161.54,161.5,40.3847]
[1730641942064,70.0,161.54,161.5,40.4847]
[1730641942268,70.0,161.56,161.51,23.876884]
[1730641942451,70.0,161.6,161.52,0.25098]
[1730641942655,70.0,161.6,161.53,0.1]
[1730641943259,70.0,161.6,161.55,23.776884]
[1730641944264,70.0,161.58,161.54,21.6664]
[1730641945562,70.0,161.58,161.54,15.476]
[1730641946765,70.0,161.6,161.54,15.476]
[1730641946997,70.0,161.6,161.55,23.776884]
[1730641947581,70.0,161.6,161.56,6.1896]
[1730641948174,70.0,161.57,161.54,15.476]
[1730641948376,70.0,161.55,161.52,6.1908]
[1730641948569,70.0,161.55,161.51,6.1913]
[1730641948766,70.0,161.53,161.5,34.1921]
[1730641949593,70.1,161.53,161.5,27.9791]
[1730641950286,70.0,161.53,161.5,34.171]
[1730641950587,0.1,161.55,161.5,34.171]
[1730641950588,70.0,161.55,161.5,34.171]
[1730641951085,0.1,161.57,161.5,34.171]
[1730641951086,70.0,161.57,161.51,23.776884]
[1730641951289,70.1,161.59,161.52,0.25098]
[1730641951475,70.0,161.59,161.54,23.776884]
[1730641951794,70.1,161.59,161.54,23.776884]
[1730641952092,70.0,161.59,161.55,21.665]
[1730641952388,70.1,161.59,161.55,21.665]
[1730641952691,70.0,161.59,161.55,21.665]
[1730641953076,70.1,161.61,161.55,21.665]
[1730641953283,70.0,161.61,161.55,21.665]
[1730641953485,70.1,161.61,161.55,21.665]
[1730641953881,70.0,161.61,161.55,15.475]
[1730641954065,70.0,161.61,161.56,23.776884]
[1730641954273,19.85546703,161.71,161.56,23.776884]
[1730641954274,70.1,161.63,161.57,0.12549]
[1730641954889,70.0,161.63,161.57,0.12549]
[1730641955287,70.0,161.63,161.58,21.661]
[1730641955790,70.1,161.63,161.58,21.661]
[1730641956183,70.1,161.59,161.52,15.2421]
[1730641956492,70.1,161.57,161.52,6.1909]
[1730641956688,70.0,161.55,161.52,6.1909]
[1730641956901,70.0,161.55,161.51,6.1915]
[1730641957081,70.0,161.55,161.51,21.6704]
[1730641959881,70.1,161.55,161.51,21.6704]
[1730641960974,70.1,161.53,161.5,12.5]
[1730641961172,70.1,161.51,161.5,12.5]
[1730641962192,70.0,161.51,161.5,12.5]
[1730641962385,70.0,161.53,161.5,18.6918]
[1730641962582,70.0,161.55,161.5,12.5]
[1730641963208,70.1,161.55,161.5,12.5]
[1730641964294,70.1,161.55,161.51,6.1915]
[1730641964704,70.0,161.52,161.5,12.5]
[1730641965005,70.1,161.52,161.5,12.5]
[1730641966601,0.1,161.51,161.5,12.5]
[1730641969902,70.1,161.52,161.5,12.5]
[1730641970202,0.1,161.51,161.5,12.5]
[1730641970576,70.1,161.52,161.5,12.5]
[1730641971004,70.1,161.52,161.5,18.6918]
[1730641971178,70.1,161.54,161.5,18.6918]
[1730641971378,70.0,161.54,161.5,18.6918]
[1730641971591,70.1,161.54,161.5,18.6918]
[1730641972009,70.0,161.54,161.5,34.1716]
[1730641972302,70.1,161.54,161.5,34.1716]
[1730641972508,15.8708,161.58,161.5,34.1716]
[1730641972509,70.1,161.56,161.5,34.1716]
[1730641972682,70.1,161.56,161.52,6.1911]
[1730641973086,70.1,161.56,161.52,5.663405]
[1730641973492,70.1,161.56,161.52,21.141305]
[1730641975195,70.1,161.54,161.5,18.6916]
[1730641976211,6.1882,161.6,161.5,12.5]
[1730641976212,70.1,161.52,161.5,12.5]
[1730641979887,0.1,161.51,161.5,12.5]
[1730641986912,29.53929,161.51,161.5,12.5]
[1730641987108,70.1,161.47,161.46,0.3024014]
[1730641987313,86.5717,161.47,161.46,0.3024014]
[1730641990533,92.89029,161.47,161.46,0.3024014]
[1730641990701,92.99029,161.47,161.46,0.3024014]
[1730641991821,70.1,161.39,161.38,0.3024014]
[1730641992205,70.0,161.39,161.38,6.4989014]
[1730641992408,0.1,161.4,161.38,21.9902014]
[1730641993514,70.1,161.39,161.38,0.3024014]
[1730641993727,70.0,161.39,161.38,0.3024014]
[1730641994096,70.0,161.42,161.38,0.3024014]
[1730641994401,70.1,161.44,161.39,23.776884]
[1730641994603,70.1,161.44,161.39,23.876884]
[1730641995419,0.1,161.43,161.39,23.876884]
[1730641995611,70.1,161.42,161.39,23.776884]
[1730641996010,70.1,161.42,161.4,21.6851]
[1730641997325,70.0,161.42,161.4,21.6851]
[1730641997916,70.1,161.42,161.4,21.6851]
[1730641998630,70.0,161.42,161.4,21.6851]
[1730641999220,28.1222,161.52,161.41,23.776884]
[1730641999221,70.0,161.45,161.41,23.776884]
[1730641999444,0.1,161.44,161.41,23.776884]
[1730642000024,0.1,161.44,161.42,21.6825]
[1730642001237,70.1,161.43,161.42,21.6825]
[1730642001543,70.0,161.43,161.42,21.6825]
[1730642001841,70.1,161.43,161.42,21.6825]
[1730642002045,70.0,161.41,161.4,30.9789]
[1730642002238,70.1,161.41,161.4,30.9789]
[1730642002435,70.1,161.39,161.38,0.3024014]
[1730642002621,70.1,161.39,161.38,6.4989014]
[1730642003538,70.1,161.41,161.38,21.9902014]
[1730642003751,0.1,161.4,161.38,21.9902014]
[1730642003927,70.1,161.39,161.38,21.9902014]
[1730642005420,70.0,161.39,161.38,21.9902014]
[1730642005847,70.1,161.39,161.38,21.9902014]
[1730642006640,70.1,161.39,161.38,6.4989014]
[1730642010533,70.0,161.39,161.38,6.4989014]
[1730642010729,70.1,161.39,161.38,6.4989014]
[1730642011928,70.0,161.41,161.39,23.776884]
[1730642012146,70.0,161.43,161.39,23.776884]
[1730642012326,70.1,161.43,161.39,23.776884]
[1730642012650,70.0,161.43,161.41,23.776884]
[1730642012848,70.1,161.43,161.41,23.776884]
[1730642013052,70.0,161.43,161.41,23.776884]
[1730642013236,70.0,161.45,161.41,23.776884]
[1730642013440,70.0,161.45,161.42,6.2381]
[1730642013837,70.0,161.45,161.43,23.776884]
[1730642014630,70.0,161.47,161.44,6.1942]
[1730642014859,70.0,161.49,161.46,0.12549]
[1730642015655,0.1,161.5,161.46,0.12549]
[1730642015827,70.0,161.51,161.48,23.776884]
[1730642015828,70.1,161.51,161.48,23.776884]
[1730642016560,0.1,161.5,161.48,23.776884]
[1730642016735,70.1,161.51,161.48,23.776884]
[1730642016935,0.1,161.5,161.48,23.776884]
[1730642017338,0.1,161.48,161.47,21.6758]
[1730642017944,70.0,161.47,161.44,30.9712]
[1730642018153,70.1,161.47,161.45,23.776884]
[1730642018869,0.1,161.46,161.44,30.9712]
[1730642019045,70.1,161.45,161.43,21.6811]
[1730642019571,70.0,161.45,161.43,21.6811]
[1730642019769,70.1,161.47,161.43,21.6811]
[1730642020155,0.1,161.46,161.44,23.776884]
[1730642021175,0.1,161.44,161.4,15.4892]
[1730642021483,0.1,161.39,161.38,6.4989014]
[1730642021851,0.1,161.39,161.38,0.3024014]
[1730642023650,0.1,161.39,161.38,6.4989014]
[1730642024661,0.1,161.39,161.38,0.3024014]
[1730642028056,70.1,161.31,161.3,0.3024014]
[1730642028253,112.0244,161.31,161.3,0.3024014]
[1730642028579,91.9244,161.31,161.3,0.3024014]
[1730642029269,70.1,161.31,161.3,0.3024014]
[1730642029472,70.32549,161.31,161.3,0.3024014]
[1730642029773,76.62469,161.31,161.3,0.3024014]
[1730642029960,76.52469,161.31,161.3,0.3024014]
[1730642030281,76.62469,161.31,161.3,0.3024014]
[1730642030571,76.52469,161.31,161.3,0.3024014]
[1730642030774,76.62469,161.31,161.3,0.3024014]
[1730642030964,96.62469,161.31,161.3,0.3024014]
[1730642031360,96.62469,161.31,161.22,0.3024014]
[1730642031566,70.1,161.23,161.22,0.3024014]
[1730642032377,94.102374,161.23,161.22,0.3024014]
[1730642032673,70.2,161.23,161.22,0.3024014]
[1730642033269,70.1,161.23,161.22,0.3024014]
[1730642033652,70.32549,161.23,161.22,0.3024014]
[1730642034576,94.102374,161.23,161.22,0.3024014]
[1730642034781,70.32549,161.23,161.22,0.3024014]
[1730642035071,88.90549,161.23,161.22,0.3024014]
[1730642035379,70.32549,161.23,161.22,0.3024014]
[1730642035554,70.1,161.23,161.22,0.3024014]
[1730642055893,76.3023,161.23,161.22,0.3024014]
[1730642056074,96.4023,161.23,161.22,0.3024014]
[1730642056278,96.62779,161.23,161.22,0.3024014]
[1730642056969,76.62779,161.23,161.22,0.3024014]
[1730642057196,96.62779,161.23,161.22,0.3024014]
[1730642058674,125.10893223,161.23,161.22,0.3024014]
[1730642058877,96.3023,161.23,161.22,0.3024014]
[1730642059190,103.04247957,161.23,161.22,0.3024014]
[1730642059390,103.04247957,161.23,161.05,0.3024014]
[1730642059391,70.1,161.06,161.05,0.3024014]
[1730642071479,70.0,161.06,161.05,6.5116014]
[1730642071874,70.0,161.06,161.05,23.0438014]
[1730642072282,70.1,161.06,161.05,23.0438014]
[1730642074095,70.1,161.06,161.05,16.8346014]
[1730642074801,70.1,161.06,161.05,0.3024014]
[1730642082282,76.3088,161.06,161.05,0.3024014]
[1730642082489,70.1,161.06,161.05,0.3024014]
[1730642087190,76.3088,161.06,161.05,0.3024014]
[1730642087603,76.4088,161.06,161.05,0.3024014]
[1730642087814,76.5088,161.06,161.05,0.3024014]
[1730642088311,115.21429,161.06,161.05,0.3024014]
[1730642088533,70.3,161.01,161.0,5.0]
[1730642088808,70.32549,161.01,161.0,5.0]
[1730642089018,70.1,161.01,161.0,5.0]
[1730642089184,70.2,161.01,161.0,5.0]
[1730642089392,70.1,161.01,161.0,5.0]
[1730642089589,70.42549,161.01,161.0,5.0]
[1730642089805,70.3,161.01,161.0,5.0]
[1730642090013,70.2,161.01,161.0,5.0]
[1730642090310,76.63619,161.01,161.0,5.0]
[1730642090488,76.53619,161.01,161.0,5.0]
[1730642090686,76.53619,161.01,161.0,4.00007323]
[1730642090687,96.63619,161.01,161.0,4.00007323]
[1730642090897,105.30152367,161.01,161.0,4.00007323]
[1730642091696,129.07840767,161.01,161.0,4.00007323]
[1730642091990,105.30152367,161.01,161.0,4.00007323]
[1730642092911,76.5107,161.01,161.0,4.00007323]
[1730642093085,76.4107,161.01,161.0,4.00007323]
[1730642093291,70.1,161.01,161.0,4.00007323]
[1730642093814,70.2,161.01,161.0,4.00007323]
[1730642094233,76.5107,161.01,161.0,4.00007323]
[1730642094812,76.3107,161.01,161.0,4.00007323]
[1730642095002,76.43619,161.01,161.0,4.00007323]
[1730642095304,76.53619,161.01,161.0,4.00007323]
[1730642096319,76.63619,161.01,161.0,4.00007323]
[1730642096995,96.63619,161.01,161.0,4.00007323]
[1730642097191,76.5107,161.01,161.0,4.00007323]
[1730642097414,76.63619,161.01,161.0,4.00007323]
[1730642097811,76.53619,161.01,161.0,4.00007323]
[1730642098014,76.63619,161.01,161.0,4.00007323]
[1730642098700,96.63619,161.01,161.0,4.00007323]
[1730642099724,126.8713095,161.01,161.0,4.00007323]
[1730642100208,102.9944255,161.01,161.0,4.00007323]
[1730642100519,102.9689355,161.01,161.0,4.00007323]
[1730642101524,82.8689355,161.01,161.0,4.00007323]
[1730642101818,70.2,161.01,161.0,4.00007323]
[1730642102319,70.1,161.01,161.0,4.00007323]
[1730642102925,76.3107,161.01,161.0,4.00007323]
[1730642103223,76.5107,161.01,161.0,4.00007323]
[1730642103407,76.4107,161.01,161.0,4.00007323]
[1730642103724,70.1,161.01,161.0,4.00007323]
[1730642104730,76.3107,161.01,161.0,4.00007323]
[1730642105218,70.1,161.01,161.0,4.00007323]
[1730642105696,70.2,161.01,161.0,4.00007323]
[1730642106010,90.83873744,161.01,161.0,4.00007323]
[1730642106201,84.52803744,161.01,161.0,4.00007323]
[1730642106519,78.29655144,161.01,161.0,4.00007323]
[1730642106706,84.50725144,161.01,161.0,4.00007323]
[1730642107105,78.19655144,161.01,161.0,4.00007323]
[1730642107296,70.1,161.01,161.0,4.00007323]
[1730642108423,70.0,161.01,161.0,10.21117323]
[1730642108805,6.7514,161.14,161.0,25.73907323]
[1730642108806,0.1,161.06,161.0,25.73907323]
[1730642109012,70.0,161.04,161.01,23.776884]
[1730642109210,70.0,161.06,161.03,6.3573]
[1730642109409,17.0436,161.17,161.03,6.3573]
[1730642109410,70.0,161.08,161.04,15.3784]
[1730642109616,70.0,161.1,161.05,23.876884]
[1730642109814,70.0,161.1,161.06,21.8309]
[1730642110725,70.0,161.1,161.07,23.776884]
[1730642111031,70.0,161.1,161.08,21.7282]
[1730642113314,70.0,161.1,161.08,15.5202]
[1730642114035,70.0,161.07,161.04,37.2116]
[1730642115134,70.0,161.09,161.06,21.7309]
[1730642115313,70.0,161.07,161.06,21.7309]
[1730642115913,0.1,161.09,161.06,21.7309]
[1730642115914,70.0,161.09,161.06,21.7309]
[1730642116226,70.0,161.07,161.06,21.7309]
[1730642116433,70.0,161.07,161.06,15.5221]
[1730642116810,70.0,161.09,161.06,15.5221]
[1730642117213,70.0,161.07,161.06,15.5221]
[1730642117923,70.0,161.09,161.06,15.5221]
[1730642118433,70.0,161.11,161.06,15.5221]
[1730642118933,70.0,161.11,161.07,23.776884]
[1730642119232,70.0,161.11,161.07,23.876884]
[1730642119407,70.0,161.11,161.09,23.776884]
[1730642119933,70.0,161.13,161.09,23.776884]
[1730642120304,70.0,161.13,161.1,21.7256]
[1730642120509,70.0,161.13,161.11,23.776884]
[1730642120820,6.45486858,161.14,161.11,23.776884]
[1730642121532,6.45486858,161.14,161.12,6.2065]
[1730642121909,6.45486858,161.14,161.11,45.501084]
[1730642122416,6.45486858,161.14,161.12,16.4796]
[1730642122613,70.0,161.2,161.14,0.12549]
[1730642122836,70.0,161.22,161.17,0.1]
[1730642123128,0.3024014,161.26,161.17,0.1]
[1730642123129,70.0,161.24,161.19,6.3718]
[1730642123330,70.0,161.22,161.19,22.8514]
[1730642124737,70.0,161.24,161.2,23.776884]
[1730642124911,70.3024014,161.26,161.2,23.776884]
[1730642125123,0.3024014,161.26,161.21,0.35098]
[1730642125336,0.3024014,161.26,161.22,0.1]
[1730642125509,0.3024014,161.26,161.25,30.203874]
[1730642125715,0.3024014,161.26,161.25,30.329364]
[1730642126215,6.46387354,161.29,161.26,23.776884]
[1730642126414,6.46387354,161.29,161.28,23.776884]
[1730642127137,0.3024014,161.34,161.3,23.776884]
[1730642127640,0.3024014,161.34,161.33,0.25098]
[1730642127842,70.0,161.41,161.35,0.1]
[1730642128045,70.0,161.41,161.34,23.776884]
[1730642128250,70.0,161.36,161.32,23.776884]
[1730642128429,70.0,161.38,161.32,23.776884]
[1730642128825,70.0,161.36,161.32,23.776884]
[1730642129021,70.0,161.38,161.33,0.12549]
[1730642129242,70.0,161.4,161.33,0.35098]
[1730642129436,70.0,161.4,161.35,0.1]
[1730642129637,70.0,161.4,161.35,24.127864]
[1730642129829,70.0,161.4,161.35,23.776884]
[1730642130238,70.0,161.38,161.34,23.776884]
[1730642130625,70.0,161.38,161.33,24.002374]
[1730642130828,70.0,161.4,161.33,30.200774]
[1730642131042,70.0,161.38,161.33,30.200774]
[1730642131340,70.0,161.41,161.35,0.1]
[1730642131543,0.3024014,161.42,161.37,6.3235]
[1730642131726,0.3024014,161.42,161.38,23.776884]
[1730642131927,0.3024014,161.42,161.39,0.12549]
[1730642132132,0.3024014,161.42,161.41,0.25098]
[1730642132327,0.3024014,161.42,161.41,0.47647]
[1730642132732,0.3024014,161.42,161.41,0.12549]
[1730642133028,0.3024014,161.42,161.41,0.35098]
[1730642133225,0.3024014,161.42,161.41,0.47647]
[1730642133422,0.3024014,161.5,161.43,0.25098]
[1730642133741,70.0,161.5,161.45,0.12549]
[1730642134354,70.0,161.48,161.44,23.776884]
[1730642134524,70.0,161.44,161.38,15.4905]
[1730642134829,70.0,161.44,161.38,21.687]
[1730642135926,70.0,161.44,161.39,0.12549]
[1730642136128,70.0,161.4,161.37,6.3235]
[1730642136340,70.0,161.4,161.34,30.6367]
[1730642136341,70.0,161.38,161.34,15.0422]
[1730642136731,70.0,161.38,161.33,6.3235]
[1730642136938,70.0,161.36,161.33,6.3235]
[1730642137837,70.0,161.38,161.33,6.3235]
[1730642138353,70.0,161.33,161.29,6.5944719]
[1730642138642,70.0,161.33,161.29,0.2709719]
[1730642138844,70.0,161.31,161.29,0.2709719]
[1730642139653,70.0,161.33,161.29,0.2709719]
[1730642139845,70.0,161.33,161.3,0.12549]
[1730642140352,70.0,161.33,161.3,23.902374]
[1730642140557,70.0,161.33,161.3,0.12549]
[1730642141257,70.0,161.31,161.29,24.0478559]
[1730642141429,70.0,161.33,161.3,0.12549]
[1730642143754,70.0,161.3,161.29,0.2709719]
[1730642144242,70.0,161.32,161.29,0.2709719]
[1730642144627,70.0,161.32,161.3,23.902374]
[1730642145454,70.0,161.32,161.29,15.7709719]
[1730642145661,70.0,161.34,161.3,23.776884]
[1730642145954,70.0,161.34,161.31,0.12549]
[1730642146949,70.0,161.36,161.31,0.12549]
[1730642147358,70.0,161.38,161.31,0.37647]
[1730642147731,70.0,161.38,161.33,24.027864]
[1730642148639,70.0,161.36,161.33,23.776884]